bitfinex-derivatives/quotes_ETHF0:USTF0_20250427
["timestamp","ask_amount","ask_price","bid_price","bid_amount"]
[1745755935866,3.567,1803.9,1803.8,5.369]
[1745755936574,3.597,1804.0,1803.8,5.369]
[1745755936875,3.597,1804.0,1803.9,1.7229]
[1745755938272,3.597,1804.0,1803.9,5.4449]
[1745755939067,5.2011,1804.0,1803.9,5.4449]
[1745755942371,3.597,1804.0,1803.9,5.4449]
[1745755942772,2.4612,1804.2,1803.9,5.4449]
[1745755942974,3.597,1804.1,1804.0,1.6544]
[1745755943174,3.597,1804.1,1804.0,5.3764]
[1745755945277,3.597,1804.2,1804.0,5.3764]
[1745755945476,3.2078,1804.3,1804.1,3.3717]
[1745755945775,6.8048,1804.3,1804.2,1.6894]
[1745755945976,6.90023289,1804.3,1804.2,1.6894]
[1745755946169,6.8048,1804.3,1804.2,5.4114]
[1745755947573,3.597,1804.4,1804.2,13.6192]
[1745755947776,62.223,1804.6,1804.3,1.6219]
[1745755948082,3.597,1804.6,1804.4,0.8306]
[1745755948280,3.597,1804.6,1804.4,1.6946]
[1745755948475,3.597,1804.6,1804.5,1.6219]
[1745755948676,5.2615,1804.6,1804.5,1.8989]
[1745755948874,5.2615,1804.6,1804.5,0.277]
[1745755949182,13.56474978,1804.6,1804.5,3.999]
[1745755950075,8.56474978,1804.6,1804.5,3.999]
[1745755950479,5.35694978,1804.6,1804.5,3.999]
[1745755950676,5.35694123,1804.6,1804.5,3.999]
[1745755951286,10.35694123,1804.6,1804.5,3.999]
[1745755952283,13.56473894,1804.6,1804.5,3.999]
[1745755952686,8.56473894,1804.6,1804.5,3.999]
[1745755952884,13.56473894,1804.6,1804.5,3.999]
[1745755953389,8.56473894,1804.6,1804.5,3.999]
[1745755954483,8.56473894,1804.6,1804.1,5.958]
[1745755954681,1.67973894,1804.5,1804.0,44.0078]
[1745755954877,0.09543894,1804.4,1804.0,44.0078]
[1745755955187,6.0462,1804.3,1804.0,47.7298]
[1745755955486,1.5843,1804.2,1804.1,1.6104]
[1745755956080,1.5843,1804.2,1804.0,6.9298]
[1745755956576,1.5843,1804.2,1804.0,3.722]
[1745755957283,0.09542425,1804.1,1804.0,3.722]
[1745755957989,1.81132425,1804.1,1804.0,3.722]
[1745755958590,1.8113209,1804.1,1804.0,3.722]
[1745755959989,1.81131964,1804.1,1804.0,3.722]
[1745755961489,1.7159,1804.1,1804.0,3.722]
[1745755961689,1.8113181,1804.1,1804.0,3.722]
[1745755961991,6.8113181,1804.1,1803.6,10.7684]
[1745755962188,8.5330181,1804.0,1803.6,4.8104]
[1745755962388,0.09542661,1803.9,1803.6,4.8104]
[1745755962577,1.67842661,1803.9,1803.6,4.8104]
[1745755962782,1.583,1803.9,1803.6,4.8104]
[1745755963085,1.583,1803.9,1803.7,1.6545]
[1745755964084,1.583,1803.9,1803.7,5.3765]
[1745755964786,1.583,1803.9,1803.8,1.6545]
[1745755964982,1.67216477,1803.9,1803.8,1.6545]
[1745755965182,1.67216477,1803.9,1803.8,5.3765]
[1745755966692,1.57675573,1803.9,1803.8,5.3765]
[1745755966895,1.67216406,1803.9,1803.8,5.3765]
[1745755967190,1.57675573,1803.9,1803.8,5.3765]
[1745755967993,1.67216301,1803.9,1803.8,5.3765]
[1745755968692,1.67216301,1803.9,1803.8,3.722]
[1745755969585,1.67216301,1803.9,1803.8,2.69081023]
[1745755969787,6.67216301,1803.9,1803.8,2.69081023]
[1745755969984,6.67216301,1803.9,1803.4,3.2835]
[1745755970187,3.2078,1803.7,1803.4,7.0055]
[1745755970394,5.32910728,1803.6,1803.4,7.0055]
[1745755970595,5.2337,1803.6,1803.4,7.0055]
[1745755971697,5.2337,1803.6,1803.4,6.1922]
[1745755971900,5.2337,1803.6,1803.4,3.722]
[1745755972094,3.2078,1803.5,1803.4,3.722]
[1745755972295,0.0953976,1803.5,1803.4,3.722]
[1745755972489,0.09539967,1803.5,1803.4,3.722]
[1745755973901,5.2337,1803.6,1803.4,3.722]
[1745755974295,5.2337,1803.6,1803.5,1.6802]
[1745755974497,5.32910164,1803.6,1803.5,1.6802]
[1745755975000,3.70440164,1803.6,1803.5,2.5146]
[1745755975300,3.70440164,1803.6,1803.5,6.2366]
[1745755975503,3.7044022,1803.6,1803.5,6.2366]
[1745755976599,3.609,1803.9,1803.5,20.4024]
[1745755976801,3.609,1803.9,1803.6,1.6802]
[1745755977105,3.609,1803.9,1803.7,0.8494]
[1745755977292,3.609,1803.9,1803.8,1.5881]
[1745755977496,3.609,1803.9,1803.8,2.4164]
[1745755977699,3.608,1803.9,1803.8,2.4164]
[1745755978098,3.608,1803.9,1803.8,6.1384]
[1745755980106,3.608,1804.3,1803.8,11.1384]
[1745755980298,3.608,1804.3,1803.9,4.8862]
[1745755980499,3.608,1804.3,1804.0,1.6784]
[1745755980698,3.608,1804.3,1804.1,0.8222]
[1745755980905,3.608,1804.3,1804.2,1.6784]
[1745755981107,3.608,1804.3,1804.2,6.2367]
[1745755982103,3.2078,1804.5,1804.2,6.2367]
[1745755982306,3.608,1804.7,1804.3,3.2078]
[1745755982508,3.608,1804.6,1804.4,1.6784]
[1745755982801,3.608,1804.6,1804.5,0.8103]
[1745755983199,3.608,1804.6,1804.5,6.2107]
[1745755984495,3.608,1804.6,1804.5,9.4185]
[1745755987310,3.608,1804.6,1804.5,8.6082]
[1745755988117,3.608,1804.6,1804.5,5.4004]
[1745755988619,5.2061,1804.6,1804.5,5.4004]
[1745755988820,6.0292,1804.6,1804.5,3.722]
[1745755989519,6.8713,1804.6,1804.5,3.722]
[1745755990122,6.96602686,1804.6,1804.5,3.722]
[1745755990814,6.96602029,1804.6,1804.5,3.722]
[1745755991422,11.96602029,1804.6,1804.5,3.6265978]
[1745755991616,11.96602029,1804.6,1804.5,0.85513281]
[1745755991811,11.96602029,1804.6,1804.4,0.2771]
[1745755992016,3.30252029,1804.5,1804.4,0.2771]
[1745755992216,4.87662029,1804.5,1804.4,0.2771]
[1745755992518,9.87662029,1804.5,1804.4,0.2771]
[1745755993024,9.87662029,1804.5,1804.0,3.2078]
[1745755993210,5.2732,1804.6,1804.0,3.2078]
[1745755993211,3.2078,1804.3,1804.0,3.2078]
[1745755993510,6.16002029,1804.2,1804.0,4.8307]
[1745755993714,6.0653,1804.2,1804.0,4.8307]
[1745755994122,6.0653,1804.2,1804.0,8.8298]
[1745755994323,1.604,1804.1,1804.0,8.8298]
[1745755996020,1.69875115,1804.1,1804.0,8.8298]
[1745755997021,1.69875008,1804.1,1804.0,8.8298]
[1745755998127,1.69875011,1804.1,1804.0,8.8298]
[1745755998626,1.69875005,1804.1,1804.0,8.8298]
[1745755998828,3.607,1804.2,1804.0,8.8298]
[1745755999027,3.607,1804.2,1804.1,1.6214]
[1745755999225,3.70175583,1804.2,1804.1,1.6214]
[1745755999430,3.607,1804.2,1804.1,1.6214]
[1745756000127,3.662,1804.2,1804.1,1.6214]
[1745756000732,3.2078,1804.3,1804.1,1.6214]
[1745756000932,3.662,1804.2,1804.1,1.6214]
[1745756004229,3.75675517,1804.2,1804.1,1.6214]
[1745756004435,3.662,1804.2,1804.1,1.6214]
[1745756004633,3.75675719,1804.2,1804.1,1.6214]
[1745756004827,3.662,1804.2,1804.1,1.6214]
[1745756005028,3.75675687,1804.2,1804.1,1.6214]
[1745756005429,3.662,1804.2,1804.1,1.6214]
[1745756005729,3.7567562,1804.2,1804.1,1.6214]
[1745756006634,3.662,1804.2,1804.1,1.6214]
[1745756007633,3.75675595,1804.2,1804.1,1.6214]
[1745756007836,3.662,1804.2,1804.1,1.6214]
[1745756008134,3.75675587,1804.2,1804.1,1.6214]
[1745756008639,3.662,1804.2,1804.1,1.6214]
[1745756009435,3.75675516,1804.2,1804.1,1.6214]
[1745756010139,3.662,1804.2,1804.1,1.6214]
[1745756017436,3.662,1804.2,1804.1,2.471]
[1745756018343,3.662,1804.2,1804.1,2.7481]
[1745756018534,3.662,1804.2,1804.1,1.8985]
[1745756019241,3.75674048,1804.2,1804.1,1.8985]
[1745756020242,11.96454048,1804.2,1804.1,0.2771]
[1745756020544,13.62854048,1804.2,1804.0,3.13498898]
[1745756020737,2.54142241,1804.1,1804.0,3.13498898]
[1745756021148,2.54142241,1804.1,1803.7,1.705]
[1745756021343,4.96652241,1804.0,1803.7,1.705]
[1745756021643,3.662,1803.9,1803.7,1.705]
[1745756022046,3.662,1803.9,1803.7,5.427]
[1745756022241,3.662,1803.9,1803.8,1.705]
[1745756023149,3.662,1803.9,1803.8,5.427]
[1745756026151,4.8718,1804.0,1803.8,5.427]
[1745756026348,3.2078,1804.0,1803.9,1.6201]
[1745756026545,6.8308,1804.0,1803.9,2.4112]
[1745756027142,3.623,1804.0,1803.9,2.4112]
[1745756027346,3.623,1804.0,1803.9,6.1332]
[1745756036252,3.623,1804.0,1803.9,6.9454]
[1745756045060,0.8623,1804.2,1803.9,6.9454]
[1745756045358,3.623,1804.1,1804.0,1.6565]
[1745756046051,3.623,1804.1,1804.0,5.3785]
[1745756052163,4.4693,1804.1,1804.0,3.722]
[1745756053363,4.56402738,1804.1,1804.0,3.722]
[1745756054764,4.4693,1804.1,1804.0,3.722]
[1745756054955,4.56402993,1804.1,1804.0,3.722]
[1745756056668,4.56402993,1804.1,1804.0,2.40660001]
[1745756057173,4.56402993,1804.1,1803.8,3.2078]
[1745756057174,9.56402993,1804.1,1803.8,3.2078]
[1745756057368,2.66052993,1804.0,1803.8,3.2078]
[1745756057567,1.82242993,1803.9,1803.8,3.2078]
[1745756057771,5.03022993,1803.9,1803.4,3.2078]
[1745756058066,3.68672993,1803.8,1803.4,3.2078]
[1745756058269,0.90542993,1803.7,1803.4,6.9298]
[1745756058465,3.3765,1803.7,1803.4,6.9298]
[1745756058667,0.09470691,1803.6,1803.4,6.9298]
[1745756058866,5.3207,1803.5,1803.4,6.9298]
[1745756061464,5.3207,1803.5,1803.4,3.722]
[1745756065473,5.41539171,1803.5,1803.4,3.722]
[1745756065671,5.3207,1803.5,1803.4,3.722]
[1745756067672,5.3207,1803.5,1803.4,5.3601]
[1745756068673,1.7277,1803.5,1803.4,5.3601]
[1745756068873,3.593,1803.6,1803.4,5.3601]
[1745756069173,3.593,1803.7,1803.5,1.6529]
[1745756069676,3.593,1803.7,1803.6,3.2078]
[1745756070064,3.593,1803.7,1803.6,9.8607]
[1745756070669,3.593,1804.1,1803.6,9.8607]
[1745756070869,3.593,1804.1,1803.8,3.2078]
[1745756071070,3.593,1804.1,1803.9,2.5175]
[1745756071377,3.593,1804.1,1804.0,42.4529]
[1745756071874,3.593,1804.1,1804.0,43.2359]
[1745756072169,3.593,1804.1,1804.0,46.9579]
[1745756080192,3.593,1804.1,1804.0,6.1579]
[1745756083990,5.1728,1804.1,1804.0,3.722]
[1745756084293,6.0144,1804.1,1804.0,3.722]
[1745756084688,6.0144,1804.1,1804.0,5.3384]
[1745756085391,6.0144,1804.1,1804.0,6.1745]
[1745756086192,6.0144,1804.1,1804.0,5.3384]
[1745756087200,6.0144,1804.1,1804.0,3.722]
[1745756089703,11.1091382,1804.1,1804.0,3.722]
[1745756090103,11.1091382,1804.1,1803.7,5.6929]
[1745756090402,1.7506382,1804.0,1803.7,5.6929]
[1745756090603,1.6559,1804.0,1803.7,5.6929]
[1745756090801,0.8644,1803.9,1803.7,5.6929]
[1745756091102,3.616,1803.8,1803.7,9.4149]
[1745756091301,3.616,1803.8,1803.7,10.214]
[1745756098403,3.616,1803.8,1803.7,3.722]
[1745756098607,3.616,1803.8,1803.7,6.9298]
[1745756098808,8.616,1803.8,1803.7,3.722]
[1745756099310,8.71066842,1803.8,1803.7,3.722]
[1745756099807,11.91846688,1803.8,1803.7,3.722]
[1745756100005,12.72436688,1803.8,1803.7,3.722]
[1745756100205,12.72436688,1803.8,1803.3,4.8565]
[1745756100409,2.58256688,1803.7,1803.3,4.8565]
[1745756100605,1.6586,1803.6,1803.3,4.8565]
[1745756100806,3.617,1803.5,1803.3,4.8565]
[1745756101110,1.6586,1803.4,1803.3,4.8565]
[1745756101301,1.6586,1803.4,1803.3,8.5785]
[1745756101702,1.6586,1803.4,1803.3,3.722]
[1745756104508,1.75320628,1803.4,1803.3,3.722]
[1745756105409,1.75320271,1803.4,1803.3,3.722]
[1745756105612,6.75320271,1803.4,1803.3,3.722]
[1745756106603,1.75320271,1803.4,1803.3,3.722]
[1745756108411,5.2756,1803.4,1803.3,3.722]
[1745756108714,3.617,1803.4,1803.3,5.4289]
[1745756108913,3.617,1803.4,1803.3,6.2594]
[1745756110710,5.42414789,1803.4,1803.3,5.4289]
[1745756110904,6.25354789,1803.4,1803.3,5.4289]
[1745756111809,6.1589,1803.4,1803.3,5.4289]
[1745756112611,3.617,1803.4,1803.3,5.4289]
[1745756113509,3.617,1803.4,1803.3,8.6367]
[1745756113710,3.617,1803.4,1803.3,5.4289]
[1745756116311,3.617,1803.4,1803.3,8.6367]
[1745756119010,62.236,1803.7,1803.3,13.6367]
[1745756119204,3.608,1803.6,1803.4,2.541]
[1745756119413,3.608,1803.6,1803.5,1.6822]
[1745756119611,3.608,1803.6,1803.5,2.4716]
[1745756120111,3.608,1803.6,1803.5,6.1936]
[1745756126715,1.6355,1803.8,1803.5,6.1936]
[1745756127016,3.608,1803.8,1803.6,4.8413]
[1745756127319,3.608,1803.8,1803.7,2.4274]
[1745756128118,3.608,1803.8,1803.7,6.1494]
[1745756132519,5.2327,1803.8,1803.7,6.1494]
[1745756135718,3.608,1803.8,1803.7,6.1494]
[1745756136521,5.1935,1803.8,1803.7,6.1494]
[1745756142222,5.1935,1803.8,1803.7,5.3555]
[1745756145624,5.1935,1803.8,1803.7,3.722]
[1745756147213,5.1935,1803.8,1803.7,5.3239]
[1745756147526,3.608,1803.8,1803.7,5.3239]
[1745756148227,3.2078,1804.0,1803.7,5.3239]
[1745756148428,1.7295,1804.2,1803.8,2.3935]
[1745756148429,3.608,1803.9,1803.8,2.3935]
[1745756148628,3.3744,1804.2,1803.8,5.6013]
[1745756148819,3.582,1804.0,1803.9,2.4377]
[1745756149224,3.582,1804.0,1803.9,6.1597]
[1745756152633,63.8133,1804.3,1803.9,6.1597]
[1745756152836,5.25012884,1804.2,1804.0,1.6079]
[1745756153034,5.1553,1804.2,1804.0,1.6079]
[1745756153533,5.1553,1804.2,1804.1,0.8063]
[1745756153734,5.2501291,1804.2,1804.1,0.8063]
[1745756154530,5.2501291,1804.2,1804.1,2.4925]
[1745756154738,5.25013077,1804.2,1804.1,2.4925]
[1745756155037,5.1553,1804.2,1804.1,2.4925]
[1745756155634,3.582,1804.2,1804.1,2.4925]
[1745756157834,3.581,1804.2,1804.1,2.4925]
[1745756159544,4.0148,1804.4,1804.1,2.4925]
[1745756159746,3.581,1804.3,1804.1,0.8063]
[1745756160040,3.2078,1804.4,1804.1,0.8063]
[1745756160343,3.581,1804.3,1804.1,0.8063]
[1745756165247,5.2853,1804.3,1804.1,0.8063]
[1745756165939,3.581,1804.3,1804.1,0.8063]
[1745756168347,3.581,1804.3,1804.1,4.0141]
[1745756169745,3.581,1804.3,1804.1,0.8063]
[1745756169946,4.3746,1804.3,1804.1,0.8063]
[1745756170145,2.4428,1804.2,1804.0,3.722]
[1745756170445,1.70787004,1804.1,1804.0,3.722]
[1745756171147,1.70787004,1804.1,1803.7,9.1658]
[1745756171347,4.46937004,1804.0,1803.8,1.5596]
[1745756171550,1.6131,1803.9,1803.8,1.5596]
[1745756172045,2.4102,1803.9,1803.8,1.5596]
[1745756172241,2.4102,1803.9,1803.8,5.2816]
[1745756172743,2.4102,1803.9,1803.8,3.722]
[1745756173141,2.50496012,1803.9,1803.8,3.722]
[1745756175753,2.59971305,1803.9,1803.8,3.722]
[1745756176050,2.50495293,1803.9,1803.8,3.722]
[1745756179558,6.07495293,1803.9,1803.8,3.722]
[1745756179854,5.9802,1803.9,1803.8,5.4272]
[1745756181357,5.1831,1803.9,1803.8,5.4272]
[1745756181554,3.57,1803.9,1803.8,5.4272]
[1745756182966,3.57,1803.9,1803.8,3.722]
[1745756183251,6.08907408,1803.9,1803.5,5.7562]
[1745756183456,1.6351,1803.8,1803.6,1.718]
[1745756186256,7.567,1803.9,1803.6,1.718]
[1745756186558,7.567,1803.9,1803.7,0.8258]
[1745756186756,9.218,1803.9,1803.7,0.8258]
[1745756187055,9.218,1803.9,1803.7,4.5478]
[1745756187555,3.2078,1803.9,1803.7,4.5478]
[1745756187755,3.2078,1803.9,1803.8,2.4062]
[1745756187956,6.7778,1803.9,1803.8,2.4062]
[1745756188157,6.7778,1803.9,1803.8,6.1282]
[1745756189662,6.87258661,1803.9,1803.8,3.722]
[1745756189854,9.36698661,1803.9,1803.8,3.722]
[1745756190159,9.36698661,1803.9,1803.5,1.6025]
[1745756190363,1.73648661,1803.8,1803.5,1.6025]
[1745756190560,1.6417,1803.8,1803.5,1.6025]
[1745756190860,6.7778,1803.9,1803.5,1.6025]
[1745756191359,6.7778,1803.9,1803.5,5.3245]
[1745756191760,6.7778,1803.9,1803.6,1.6212]
[1745756191956,6.7778,1803.9,1803.7,0.8172]
[1745756192257,6.7778,1803.9,1803.8,1.6212]
[1745756193061,6.7778,1803.9,1803.8,5.3432]
[1745756193765,3.57,1803.9,1803.8,5.3432]
[1745756196251,5.1393,1803.9,1803.8,5.3432]
[1745756196451,6.02420563,1803.9,1803.8,3.722]
[1745756196858,6.02420408,1803.9,1803.8,3.722]
[1745756197562,5.9294,1803.9,1803.8,3.722]
[1745756197775,6.02420662,1803.9,1803.8,3.722]
[1745756198057,9.23200662,1803.9,1803.8,3.722]
[1745756198263,9.23200662,1803.9,1803.6,3.2078]
[1745756198567,1.73700662,1803.8,1803.7,1.7038]
[1745756199164,1.6422,1803.8,1803.7,5.4258]
[1745756199361,1.73700361,1803.8,1803.7,5.4258]
[1745756200259,1.73700279,1803.8,1803.7,5.4258]
[1745756201163,1.6422,1803.8,1803.7,5.4258]
[1745756201460,1.7370023,1803.8,1803.7,5.4258]
[1745756208768,1.73690711,1803.8,1803.7,5.4258]
[1745756210269,1.6422,1803.8,1803.7,5.4258]
[1745756210573,1.73690666,1803.8,1803.7,5.4258]
[1745756212664,3.572,1803.8,1803.7,5.4258]
[1745756212863,3.572,1803.8,1803.7,8.6336]
[1745756214572,5.6789,1804.2,1803.7,13.6336]
[1745756214774,3.572,1804.0,1803.8,3.2957]
[1745756215072,3.572,1804.0,1803.9,1.649]
[1745756215573,3.572,1804.1,1803.9,9.8568]
[1745756215774,3.572,1804.2,1804.0,1.649]
[1745756215966,2.4337,1804.5,1804.1,3.2078]
[1745756216166,3.572,1804.4,1804.3,3.2078]
[1745756216466,3.572,1804.4,1804.3,4.8568]
[1745756217178,3.572,1804.4,1804.3,8.5788]
[1745756217373,1.6276,1804.5,1804.3,8.5788]
[1745756217672,3.572,1804.5,1804.4,1.649]
[1745756218173,3.572,1804.5,1804.4,5.371]
[1745756219971,5.2648,1804.5,1804.4,5.371]
[1745756220377,3.572,1804.5,1804.4,5.371]
[1745756222776,3.66658925,1804.5,1804.4,5.371]
[1745756223075,3.66658925,1804.5,1804.4,3.722]
[1745756223076,5.35908925,1804.5,1804.4,3.722]
[1745756223673,5.2645,1804.5,1804.4,3.722]
[1745756224071,5.35908779,1804.5,1804.4,3.722]
[1745756224474,5.35908513,1804.5,1804.4,3.722]
[1745756224675,10.45366965,1804.5,1804.4,3.3738]
[1745756225074,10.45366965,1804.5,1804.1,3.2078]
[1745756225376,5.87228452,1804.4,1804.1,3.2078]
[1745756225581,2.66028452,1804.3,1804.1,3.2078]
[1745756225774,5.2798,1804.2,1804.1,4.7758]
[1745756226278,3.571,1804.2,1804.1,4.7758]
[1745756228485,1.7088,1804.4,1804.1,4.7758]
[1745756228676,3.571,1804.3,1804.2,1.7242]
[1745756229076,3.571,1804.3,1804.2,5.4462]
[1745756229681,0.09458513,1804.5,1804.2,5.4462]
[1745756229883,3.571,1804.4,1804.3,2.4841]
[1745756230485,0.09458513,1804.5,1804.3,2.4841]
[1745756230781,3.66558513,1804.5,1804.4,1.687]
[1745756231182,3.66558513,1804.5,1804.4,5.409]
[1745756237386,0.09458513,1804.5,1804.4,5.409]
[1745756237588,3.571,1804.7,1804.4,10.409]
[1745756237787,3.571,1804.7,1804.6,3.2078]
[1745756238092,3.571,1804.7,1804.6,44.0078]
[1745756238292,3.571,1804.7,1804.6,44.8209]
[1745756238490,3.571,1804.7,1804.6,46.5286]
[1745756238990,3.571,1804.7,1804.6,43.3208]
[1745756239191,3.571,1804.7,1804.6,42.5077]
[1745756239892,3.571,1804.7,1804.6,1.7077]
[1745756240390,5.9855,1804.7,1804.6,1.7077]
[1745756240894,3.571,1804.7,1804.6,1.7077]
[1745756246194,3.578,1804.9,1804.6,9.9155]
[1745756246397,3.578,1804.9,1804.6,4.9155]
[1745756246584,3.578,1804.9,1804.7,1.6767]
[1745756246787,3.578,1804.9,1804.8,0.8027]
[1745756247087,3.578,1804.9,1804.8,1.6447]
[1745756247287,1.7304,1805.1,1804.8,1.6447]
[1745756247488,3.578,1805.0,1804.9,1.6767]
[1745756248092,3.578,1805.0,1804.9,5.3987]
[1745756248295,3.578,1805.1,1804.9,8.6065]
[1745756248493,3.578,1805.1,1805.0,1.6887]
[1745756249100,3.578,1805.1,1805.0,5.4107]
[1745756252090,3.577,1805.4,1805.0,5.4107]
[1745756252295,3.577,1805.4,1805.2,3.2078]
[1745756252495,3.577,1805.4,1805.3,2.443]
[1745756253098,3.577,1805.4,1805.3,6.165]
[1745756256294,3.577,1805.6,1805.3,6.165]
[1745756256499,3.577,1805.6,1805.5,3.2078]
[1745756256996,3.577,1805.6,1805.5,4.7729]
[1745756257296,3.577,1805.6,1805.5,8.4949]
[1745756261506,3.577,1805.6,1805.5,49.2949]
[1745756273520,1.6146,1805.8,1805.5,49.2949]
[1745756273705,1.6146,1805.8,1805.6,2.4242]
[1745756274010,1.6146,1805.8,1805.7,4.7807]
[1745756274208,1.6146,1805.8,1805.7,9.3205]
[1745756274409,1.6146,1805.8,1805.7,50.1205]
[1745756276317,1.6146,1805.8,1805.7,47.7298]
[1745756277420,1.6146,1805.8,1805.7,44.522]
[1745756278310,1.6146,1805.8,1805.7,40.8]
[1745756279119,1.6146,1805.8,1805.7,44.522]
[1745756279717,6.6146,1805.8,1805.7,44.522]
[1745756279921,1.6146,1805.8,1805.7,3.722]
[1745756280326,6.6146,1805.8,1805.7,3.30921488]
[1745756280517,6.70837753,1805.8,1805.7,0.53933128]
[1745756280723,9.91616925,1805.8,1805.7,1e-08]
[1745756281115,13.63816925,1805.8,1805.3,3.2078]
[1745756281320,1.73906925,1805.7,1805.3,3.2078]
[1745756281522,3.65076925,1805.6,1805.3,3.2078]
[1745756281822,2.4363,1805.5,1805.3,3.2078]
[1745756282011,1.5958,1805.4,1805.3,3.2078]
[1745756282712,6.68956854,1805.4,1805.1,3.2078]
[1745756283022,3.2078,1805.2,1804.8,6.9298]
[1745756283325,1.74705992,1805.1,1804.8,6.9298]
[1745756283519,5.1528,1805.0,1804.8,6.9298]
[1745756283723,1.5958,1804.9,1804.8,6.9298]
[1745756284118,1.5958,1804.9,1804.8,3.2078]
[1745756285121,1.5958,1804.9,1804.8,3.722]
[1745756285923,6.68954822,1804.9,1804.8,3.722]
[1745756286122,6.68954822,1804.9,1804.5,3.2078]
[1745756286323,1.6676,1804.8,1804.5,3.2078]
[1745756286523,3.558,1804.7,1804.5,44.0078]
[1745756286724,3.558,1804.7,1804.5,3.2078]
[1745756286725,4.3703,1804.7,1804.5,3.2078]
[1745756286928,2.4925,1804.6,1803.8,3.2078]
[1745756287128,1.76140502,1804.5,1803.8,3.2078]
[1745756287321,3.65180502,1804.4,1803.9,1.6914]
[1745756287632,2.4491,1804.3,1804.0,0.8058]
[1745756287925,2.4491,1804.3,1804.1,1.6652]
[1745756288727,1.6168,1804.2,1804.0,3.722]
[1745756288921,3.558,1804.1,1804.0,3.722]
[1745756291427,5.1298,1804.1,1804.0,3.722]
[1745756292427,3.9893,1804.3,1804.0,3.722]
[1745756292730,6.7668,1804.3,1804.1,1.7297]
[1745756292929,6.7668,1804.3,1804.1,3.3539]
[1745756293322,3.559,1804.3,1804.2,1.7297]
[1745756293529,3.559,1804.3,1804.2,42.5297]
[1745756294130,3.559,1804.3,1804.2,46.2517]
[1745756294532,3.56,1804.4,1804.2,51.2517]
[1745756294728,3.56,1804.4,1804.3,1.5736]
[1745756294928,3.56,1804.7,1804.3,4.7814]
[1745756295131,3.56,1804.7,1804.4,1.5736]
[1745756295648,3.56,1804.7,1804.5,0.8114]
[1745756295841,3.56,1804.7,1804.6,1.5736]
[1745756296947,3.56,1804.7,1804.6,4.7814]
[1745756298246,3.56,1804.7,1804.6,5.6302]
[1745756300947,3.6,1804.7,1804.6,5.6302]
[1745756309145,3.6,1804.7,1804.6,46.4302]
[1745756310854,0.43559444,1805.0,1804.6,46.4302]
[1745756311051,3.6,1804.9,1804.7,1.5887]
[1745756311252,3.6,1804.9,1804.8,0.8282]
[1745756311653,1.7286,1805.1,1804.8,4.036]
[1745756311956,3.6,1805.0,1804.9,4.7965]
[1745756313250,3.6,1805.0,1804.9,8.5185]
[1745756318361,3.6,1805.2,1804.9,8.5185]
[1745756318558,3.2078,1805.4,1805.0,2.4619]
[1745756318760,6.8078,1805.4,1805.1,1.6425]
[1745756318961,6.8078,1805.4,1805.1,2.4532]
[1745756319356,6.8078,1805.4,1805.2,1.6425]
[1745756320254,6.8078,1805.4,1805.2,5.3645]
[1745756321159,3.6,1805.4,1805.2,5.3645]
[1745756321860,2.4747,1805.3,1805.2,3.722]
[1745756323164,2.4747,1805.3,1805.0,4.0272]
[1745756323358,2.5098,1805.2,1805.0,4.0272]
[1745756323557,1.6855,1805.1,1805.0,4.0272]
[1745756324364,1.6855,1805.1,1805.0,7.7492]
[1745756325164,0.7892,1805.3,1805.0,7.7492]
[1745756325356,3.2586,1805.3,1805.1,2.4926]
[1745756327563,3.2586,1805.3,1805.2,1.6418]
[1745756328161,3.2586,1805.3,1805.2,5.3638]
[1745756328364,2.4347,1805.3,1805.2,5.3638]
[1745756333561,3.6,1805.4,1805.2,8.5716]
[1745756333760,3.6,1805.4,1805.3,1.7146]
[1745756335164,3.6,1805.4,1805.3,5.4366]
[1745756335364,5.1695,1805.4,1805.3,5.4366]
[1745756340671,3.6,1805.4,1805.3,5.4366]
[1745756341368,3.6,1805.4,1805.3,6.253]
[1745756343872,7.23399934,1805.7,1805.3,6.253]
[1745756344178,7.23399934,1805.7,1805.4,2.5069]
[1745756344381,7.23399934,1805.7,1805.5,1.727]
[1745756344576,6.7858,1805.7,1805.6,0.7928]
[1745756345778,6.7858,1805.7,1805.6,2.4262]
[1745756346178,3.578,1805.7,1805.6,5.634]
[1745756352480,3.578,1805.7,1805.5,3.722]
[1745756352682,5.3068,1805.7,1805.5,5.3723]
[1745756352982,1.7288,1805.6,1805.5,5.3723]
[1745756354282,1.7288,1805.6,1805.5,3.722]
[1745756354475,6.82269231,1805.6,1805.5,2.895]
[1745756354776,6.82269231,1805.6,1805.2,1.6503]
[1745756354975,6.82269231,1805.6,1804.9,1.6238]
[1745756354976,5.66108108,1805.5,1804.9,1.6238]
[1745756355176,6.07718108,1805.4,1805.0,1.6194]
[1745756355371,1.5769,1805.3,1805.0,1.6194]
[1745756356083,1.5769,1805.3,1805.0,5.3414]
[1745756356278,1.5769,1805.3,1805.1,1.6194]
[1745756358286,1.10766,1805.2,1805.1,1.6194]
[1745756368986,1.10772,1805.1,1805.0,2.54444]
[1745756369295,6.28882,1805.1,1805.0,4.18044]